fUST/lending_fUST_20251127
["ID","MTS","AMOUNT","RATE_DAILY","PERIOD"]
[394965282,1764219194721,-1001.9495679,0.00011521,2]
[394965283,1764219194737,-599.68640276,0.00011521,2]
[394965284,1764219194747,-615.19579303,0.00011521,2]
[394965285,1764219194757,-1000.0,0.00011521,2]
[394965286,1764219194767,-151.0,0.000116,2]
[394965287,1764219194777,-151.0,0.000116,2]
[394965288,1764219194787,-233.51889341,0.00011644,2]
[394965289,1764219194796,-3000.0,0.00011747,2]
[394965290,1764219194806,-151.0,0.000119,2]
[394965291,1764219194816,-151.0,0.000119,2]
[394965292,1764219194825,-727.773264,0.00012038,2]
[394965293,1764219194834,-642.83,0.00012054,2]
[394965294,1764219194844,-1500.0,0.00012068,2]
[394965295,1764219194853,-1500.0,0.00012068,2]
[394965296,1764219194863,-1500.0,0.00012068,2]
[394965297,1764219194872,-1011.85237849,0.00012068,2]
[394965298,1764219194882,-1500.0,0.00012068,2]
[394965299,1764219194893,-1613.0,0.00012106,2]
[394965300,1764219194903,-242.15909246,0.00012192,2]
[394965301,1764219194912,-151.0,0.000122,2]
[394965302,1764219194922,-151.0,0.000122,2]
[394965303,1764219194931,-158.91535085,0.00012253,2]
[394965304,1764219194942,-720.0,0.00012295,2]
[394965305,1764219194952,-3500.0,0.00012295,2]
[394965306,1764219194963,-630.0,0.00012312,2]
[394965307,1764219194973,-2153.0,0.00012312,2]
[394965308,1764219194983,-990.0,0.00012312,2]
[394965309,1764219194993,-150.0,0.00012312,2]
[394965310,1764219195003,-12003.94,0.00012329,2]
[394965311,1764219195012,-10003.29,0.00012329,2]
[394965312,1764219195021,-8336.07,0.00012329,2]
[394965313,1764219195030,-6946.73,0.00012329,2]
[394965314,1764219195039,-5788.94,0.00012329,2]
[394965315,1764219195049,-4824.12,0.00012329,2]
[394965316,1764219195059,-4020.1,0.00012329,2]
[394965317,1764219195068,-3350.08,0.00012329,2]
[394965318,1764219195077,-2791.73,0.00012329,2]
[394965319,1764219195086,-2326.44,0.00012329,2]
[394965320,1764219195095,-1938.7,0.00012329,2]
[394965321,1764219195105,-1615.59,0.00012329,2]
[394965322,1764219195115,-1346.32,0.00012329,2]
[394965323,1764219195124,-1121.94,0.00012329,2]
[394965324,1764219195133,-934.95,0.00012329,2]
[394965325,1764219195143,-779.12,0.00012329,2]
[394965326,1764219195152,-649.27,0.00012329,2]
[394965327,1764219195162,-541.06,0.00012329,2]
[394965328,1764219195172,-450.88,0.00012329,2]
[394965329,1764219195181,-375.73,0.00012329,2]
[394965330,1764219195190,-313.11,0.00012329,2]
[394965331,1764219195199,-260.93,0.00012329,2]
[394965332,1764219195209,-217.44,0.00012329,2]
[394965333,1764219195218,-181.2,0.00012329,2]
[394965334,1764219195227,-151.0,0.00012329,2]
[394965335,1764219195236,-755.01,0.00012329,2]
[394965336,1764219195245,-1376.74941622,0.00012419,7]
[394965337,1764219195254,-1831.77206952,0.000125,2]
[394965338,1764219195263,-151.0,0.000125,2]
[394965339,1764219195273,-151.0,0.000125,2]
[394965340,1764219195282,-151.0,0.000125,2]
[394965341,1764219195291,-151.54280041,0.00012616,2]
[394965342,1764219195300,-2000.0,0.00012616,2]
[394965343,1764219195309,-2000.0,0.00012616,2]
[394965344,1764219195318,-2000.0,0.00012616,2]
[394965345,1764219195327,-251.11897888,0.0001274,2]
[394965346,1764219195336,-151.0,0.000128,2]
[394965347,1764219195345,-151.0,0.000128,2]
[394965348,1764219195354,-151.0,0.000128,2]
[394965349,1764219195363,-151.0,0.000128,2]
[394965350,1764219195373,-2567.41756372,0.00012843,2]
[394965351,1764219195382,-12569.38482294,0.000129,2]
[394965352,1764219195394,-12569.38482293,0.000129,2]
[394965353,1764219195407,-319.0197087,0.00013074,2]
[394965354,1764219195416,-192.027293,0.00013074,2]
[394965355,1764219195427,-169.2287534,0.00013074,2]
[394965356,1764219195436,-192.027293,0.00013074,2]
[394965357,1764219195445,-192.027293,0.00013074,2]
[394965358,1764219195454,-151.0,0.000131,2]
[394965359,1764219195464,-151.0,0.000131,2]
[394965360,1764219195474,-151.0,0.000131,2]
[394965361,1764219195483,-151.0,0.000131,2]
[394965362,1764219195492,-224.3,0.00013102,2]
[394965363,1764219195501,-642.83,0.0001315,2]
[394965364,1764219195509,-500.0,0.00013164,2]
[394965365,1764219195519,-2500.0,0.00013164,2]
[394965366,1764219195528,-1004.43111579,0.00013164,2]
[394965367,1764219195537,-160.0,0.0001327,2]
[394965368,1764219195546,-353.54508592,0.0001327,2]
[394965369,1764219195555,-260.4103811,0.00013288,2]
[394965370,1764219195565,-904.0,0.00013317,2]
[394965371,1764219195574,-151.0,0.000134,2]
[394965372,1764219195583,-151.0,0.000134,2]
[394965373,1764219195592,-151.0,0.000134,2]
[394965374,1764219195602,-151.0,0.000134,2]
[394965375,1764219195614,-378.36470221,0.00013518,2]
[394965376,1764219195623,-864.0,0.00013524,2]
[394965377,1764219195632,-1376.74941622,0.00013583,9]
[394965378,1764219195641,-13937.01558113,0.00013598,2]
[394965379,1764219195650,-500.0,0.00013673,2]
[394965380,1764219195659,-225.39248114,0.00013673,2]
[394965381,1764219195668,-228.33838134,0.00013673,2]
[394965382,1764219195677,-500.0,0.00013673,2]
[394965383,1764219195686,-150.61862048,0.00013698,2]
[394965384,1764219195695,-500.0,0.00013698,2]
[394965385,1764219195704,-500.0,0.00013698,2]
[394965386,1764219195719,-500.0,0.00013698,2]
[394965387,1764219195727,-500.0,0.00013698,2]
[394965388,1764219195736,-500.0,0.00013698,2]
[394965389,1764219195745,-500.0,0.00013698,2]
[394965390,1764219195755,-500.0,0.00013698,2]
[394965391,1764219195764,-500.0,0.00013698,2]
[394965392,1764219195773,-500.0,0.00013698,2]
[394965393,1764219195783,-500.0,0.00013698,2]
[394965394,1764219195794,-500.0,0.00013698,2]
[394965395,1764219195803,-500.0,0.00013698,2]
[394965396,1764219195812,-500.0,0.00013698,2]
[394965397,1764219195821,-500.0,0.00013698,2]
[394965398,1764219195831,-500.0,0.00013698,2]
[394965399,1764219195840,-500.0,0.00013698,2]
[394965400,1764219195848,-500.0,0.00013698,2]
[394965401,1764219195859,-259.19012218,0.00013698,2]
[394965402,1764219195868,-500.0,0.00013698,2]
[394965403,1764219195877,-500.0,0.00013698,2]
[394965404,1764219195886,-163.81075746,0.00013698,2]
[394965405,1764219195895,-500.0,0.00013698,2]
[394965406,1764219195904,-500.0,0.00013698,2]
[394965407,1764219195913,-500.0,0.00013698,2]
[394965408,1764219195922,-500.0,0.00013698,2]
[394965409,1764219195932,-500.0,0.00013698,2]
[394965410,1764219195941,-500.0,0.00013698,2]
[394965411,1764219195950,-500.0,0.00013698,2]
[394965412,1764219195959,-188.53523487,0.00013698,2]
[394965413,1764219195968,-3617.53,0.00013698,2]
[394965414,1764219195978,-3617.53,0.00013698,2]
[394965415,1764219195987,-3617.53,0.00013698,2]
[394965416,1764219195996,-3617.53,0.00013698,2]
[394965417,1764219196005,-3617.53,0.00013698,2]
[394965418,1764219196014,-3617.53,0.00013698,2]
[394965419,1764219196023,-3617.53,0.00013698,2]
[394965420,1764219196032,-3617.53,0.00013698,2]
[394965421,1764219196041,-3617.53,0.00013698,2]
[394965422,1764219196051,-3617.53,0.00013698,2]
[394965423,1764219196060,-3617.53,0.00013698,2]
[394965424,1764219196069,-3617.53,0.00013698,2]
[394965425,1764219196078,-3617.53,0.00013698,2]
[394965426,1764219196087,-3617.53,0.00013698,2]
[394965427,1764219196096,-3617.53,0.00013698,2]
[394965428,1764219196105,-3617.53,0.00013698,2]
[394965429,1764219196115,-3617.53,0.00013698,2]
[394965430,1764219196124,-3617.53,0.00013698,2]
[394965431,1764219196133,-3617.53,0.00013698,2]
[394965432,1764219196142,-3617.53,0.00013698,2]
[394965433,1764219196285,-3617.53,0.00013698,2]
[394965434,1764219196295,-3617.53,0.00013698,2]
[394965435,1764219196304,-3617.53,0.00013698,2]
[394965436,1764219196313,-3617.55573129,0.00013698,2]
[394965437,1764219196322,-500.0,0.00013698,2]
[394965438,1764219196331,-500.0,0.00013698,2]
[394965439,1764219196340,-500.0,0.00013698,2]
[394965440,1764219196350,-500.0,0.00013698,2]
[394965441,1764219196360,-379.69883111,0.00013698,2]
[394965442,1764219196369,-500.0,0.00013698,2]
[394965443,1764219196380,-500.0,0.00013698,2]
[394965444,1764219196390,-500.0,0.00013698,2]
[394965445,1764219196399,-500.0,0.00013698,2]
[394965446,1764219196409,-500.0,0.00013698,2]
[394965447,1764219196420,-500.0,0.00013698,2]
[394965448,1764219196429,-500.0,0.00013698,2]
[394965449,1764219196439,-500.0,0.00013698,2]
[394965450,1764219196449,-500.0,0.00013698,2]
[394965451,1764219196459,-500.0,0.00013698,2]
[394965452,1764219196468,-500.0,0.00013698,2]
[394965453,1764219196477,-500.0,0.00013698,2]
[394965454,1764219196486,-500.0,0.00013698,2]
[394965455,1764219196495,-500.0,0.00013698,2]
[394965456,1764219196504,-500.0,0.00013698,2]
[394965457,1764219196513,-500.0,0.00013698,2]
[394965458,1764219196522,-500.0,0.00013698,2]
[394965459,1764219196531,-500.0,0.00013698,2]
[394965460,1764219196540,-500.0,0.00013698,2]
[394965461,1764219196549,-414.04241939,0.00013698,2]
[394965462,1764219196558,-500.0,0.00013698,2]
[394965463,1764219196567,-500.0,0.00013698,2]
[394965464,1764219196576,-500.0,0.00013698,2]
[394965465,1764219196585,-500.0,0.00013698,2]
[394965466,1764219196594,-500.0,0.00013698,2]
[394965467,1764219196603,-500.0,0.00013698,2]
[394965468,1764219196611,-500.0,0.00013698,2]
[394965469,1764219196620,-500.0,0.00013698,2]
[394965470,1764219196632,-500.0,0.00013698,2]
[394965471,1764219196641,-500.0,0.00013698,2]
[394965472,1764219196650,-500.0,0.00013698,2]
[394965473,1764219196659,-500.0,0.00013698,2]
[394965474,1764219196668,-500.0,0.00013698,2]
[394965475,1764219196677,-620.89260276,0.00013698,2]
[394965476,1764219196686,-501.29970786,0.00013698,2]
[394965477,1764219196695,-500.0,0.00013698,2]
[394965478,1764219196704,-500.0,0.00013698,2]
[394965479,1764219196716,-500.0,0.00013698,2]
[394965480,1764219196725,-1057.22,0.00013698,2]
[394965481,1764219196735,-500.0,0.00013698,2]
[394965482,1764219196744,-1057.22,0.00013698,2]
[394965483,1764219196752,-500.0,0.00013698,2]
[394965484,1764219196762,-1057.22,0.00013698,2]
[394965485,1764219196772,-500.0,0.00013698,2]
[394965486,1764219196782,-1057.22,0.00013698,2]
[394965487,1764219196793,-500.0,0.00013698,2]
[394965488,1764219196802,-1057.22,0.00013698,2]
[394965489,1764219196811,-500.0,0.00013698,2]
[394965490,1764219196821,-1057.22,0.00013698,2]
[394965491,1764219196832,-500.0,0.00013698,2]
[394965492,1764219196842,-1057.22,0.00013698,2]
[394965493,1764219196852,-500.0,0.00013698,2]
[394965494,1764219196861,-1057.22,0.00013698,2]
[394965495,1764219196871,-500.0,0.00013698,2]
[394965496,1764219196880,-1057.22,0.00013698,2]
[394965497,1764219196889,-500.0,0.00013698,2]
[394965498,1764219196898,-1057.22,0.00013698,2]
[394965499,1764219196907,-500.0,0.00013698,2]
[394965500,1764219196916,-500.0,0.00013698,2]
[394965501,1764219196925,-1057.22,0.00013698,2]
[394965502,1764219196935,-500.0,0.00013698,2]
[394965503,1764219196944,-1057.22,0.00013698,2]
[394965504,1764219196953,-221.97891435,0.00013698,2]
[394965505,1764219196962,-1057.22,0.00013698,2]
[394965506,1764219196971,-1057.22,0.00013698,2]
[394965507,1764219196980,-1057.22,0.00013698,2]
[394965508,1764219196989,-1057.22,0.00013698,2]
[394965509,1764219196999,-1057.22,0.00013698,2]
[394965510,1764219197008,-1057.22,0.00013698,2]
[394965511,1764219197017,-1057.22,0.00013698,2]
[394965512,1764219197026,-1057.22,0.00013698,2]
[394965513,1764219197035,-1057.22,0.00013698,2]
[394965514,1764219197044,-1057.22,0.00013698,2]
[394965515,1764219197053,-1057.22,0.00013698,2]
[394965516,1764219197063,-1057.43674909,0.00013698,2]
[394965517,1764219197072,-500.0,0.00013698,2]
[394965518,1764219197081,-500.0,0.00013698,2]
[394965519,1764219197090,-500.0,0.00013698,2]
[394965520,1764219197099,-500.0,0.00013698,2]
[394965521,1764219197108,-354.83014837,0.00013698,2]
[394965522,1764219197117,-592.54915354,0.00013698,2]
[394965523,1764219197127,-500.0,0.00013698,2]
[394965524,1764219197136,-500.0,0.00013698,2]
[394965525,1764219197145,-500.0,0.00013698,2]
[394965526,1764219197154,-500.0,0.00013698,2]
[394965527,1764219197163,-500.0,0.00013698,2]
[394965528,1764219197172,-500.0,0.00013698,2]
[394965529,1764219197181,-500.0,0.00013698,2]
[394965530,1764219197190,-500.0,0.00013698,2]
[394965531,1764219197199,-500.0,0.00013698,2]
[394965532,1764219197208,-500.0,0.00013698,2]
[394965533,1764219197218,-500.0,0.00013698,2]
[394965534,1764219197227,-500.0,0.00013698,2]
[394965535,1764219197236,-500.0,0.00013698,2]
[394965536,1764219197244,-500.0,0.00013698,2]
[394965537,1764219197253,-39757.09,0.00013698,2]
[394965538,1764219197262,-39757.09,0.00013698,2]
[394965539,1764219197271,-500.0,0.00013698,2]
[394965540,1764219197280,-39757.09,0.00013698,2]
[394965541,1764219197289,-261.13433563,0.00013698,2]
[394965542,1764219197298,-39757.09,0.00013698,2]
[394965543,1764219197306,-39757.09,0.00013698,2]
[394965544,1764219197316,-39757.09,0.00013698,2]
[394965545,1764219197325,-39757.09,0.00013698,2]
[394965546,1764219197333,-39757.09,0.00013698,2]
[394965547,1764219197342,-39757.09,0.00013698,2]
[394965548,1764219197351,-39757.09,0.00013698,2]
[394965549,1764219197360,-39757.09,0.00013698,2]
[394965550,1764219197368,-39757.09,0.00013698,2]
[394965551,1764219197377,-39757.09,0.00013698,2]
[394965552,1764219197386,-39757.09,0.00013698,2]
[394965553,1764219197395,-39757.09,0.00013698,2]
[394965554,1764219197404,-39757.09,0.00013698,2]
[394965555,1764219197413,-39757.09,0.00013698,2]
[394965556,1764219197422,-39757.09,0.00013698,2]
[394965557,1764219197431,-39757.09,0.00013698,2]
[394965558,1764219197440,-39757.09,0.00013698,2]
[394965559,1764219197450,-39757.09,0.00013698,2]
[394965560,1764219197459,-39757.09,0.00013698,2]
[394965561,1764219197467,-39757.09,0.00013698,2]
[394965562,1764219197477,-39757.22400892,0.00013698,2]
[394965563,1764219197486,-6750.0,0.00013699,2]
[394965564,1764219197495,-2932.1880503,0.00013699,2]
[394965565,1764219197504,-1000.0,0.00013699,2]
[394965566,1764219197513,-64670.9396602,0.00013699,2]
[394965567,1764219197522,-7965.406569,0.00013699,2]
[394965568,1764219197531,-17289.9595236,0.00013699,2]
[394965569,1764219197540,-151.0,0.00013699,2]
[394965570,1764219197549,-151.0,0.00013699,2]
[394965571,1764219197558,-151.0,0.00013699,2]
[394965572,1764219197567,-151.0,0.00013699,2]
[394965573,1764219197576,-168.259523,0.00013699,2]
[394965574,1764219197585,-151.0,0.00013699,2]
[394965575,1764219197595,-151.0,0.00013699,2]
[394965576,1764219197605,-151.0,0.00013699,2]
[394965577,1764219197614,-151.0,0.00013699,2]
[394965578,1764219197624,-151.0,0.00013699,2]
[394965579,1764219197632,-151.0,0.00013699,2]
[394965580,1764219197642,-151.0,0.00013699,2]
[394965581,1764219197651,-188.939273,0.00013699,2]
[394965582,1764219197663,-378.45533,0.00013699,2]
[394965583,1764219197672,-378.45533,0.00013699,2]
[394965584,1764219197682,-378.45533,0.00013699,2]
[394965585,1764219197691,-378.45533,0.00013699,2]
[394965586,1764219197700,-378.45533,0.00013699,2]
[394965587,1764219197712,-378.45533,0.00013699,2]
[394965588,1764219197723,-378.45533,0.00013699,2]
[394965589,1764219197733,-378.45533,0.00013699,2]
[394965590,1764219197743,-378.45533,0.00013699,2]
[394965591,1764219197755,-378.45533,0.00013699,2]
[394965592,1764219197764,-378.45533,0.00013699,2]
[394965593,1764219197773,-378.45533,0.00013699,2]
[394965594,1764219197783,-378.45533,0.00013699,2]
[394965595,1764219197794,-378.45533,0.00013699,2]
[394965596,1764219197803,-378.45533,0.00013699,2]
[394965597,1764219197812,-378.45533,0.00013699,2]
[394965598,1764219197821,-378.45533,0.00013699,2]
[394965599,1764219197830,-378.45533,0.00013699,2]
[394965600,1764219197839,-378.45533,0.00013699,2]
[394965601,1764219197849,-378.455328,0.00013699,2]
[394965602,1764219197858,-1500.0,0.00013699,2]
[394965603,1764219197868,-1905.591575,0.00013699,2]
[394965604,1764219197877,-1905.591575,0.00013699,2]
[394965605,1764219197886,-1905.591575,0.00013699,2]
[394965606,1764219197895,-1905.591575,0.00013699,2]
[394965607,1764219197904,-1905.591575,0.00013699,2]
[394965608,1764219197914,-1905.591575,0.00013699,2]
[394965609,1764219197923,-1905.591575,0.00013699,2]
[394965610,1764219197932,-1905.591575,0.00013699,2]
[394965611,1764219197940,-1905.591575,0.00013699,2]
[394965612,1764219197950,-1905.591575,0.00013699,2]
[394965613,1764219197958,-1905.591575,0.00013699,2]
[394965614,1764219197968,-1905.591575,0.00013699,2]
[394965615,1764219197977,-1905.591575,0.00013699,2]
[394965616,1764219197986,-1905.591575,0.00013699,2]
[394965617,1764219197996,-1905.591575,0.00013699,2]
[394965618,1764219198005,-1905.591575,0.00013699,2]
[394965619,1764219198014,-1905.591575,0.00013699,2]
[394965620,1764219198023,-1905.591575,0.00013699,2]
[394965621,1764219198033,-1905.591575,0.00013699,2]
[394965622,1764219198042,-1905.591575,0.00013699,2]
[394965623,1764219198051,-2640.823451,0.00013699,2]
[394965624,1764219198060,-2640.823451,0.00013699,2]
[394965625,1764219198069,-2640.823451,0.00013699,2]
[394965626,1764219198078,-2640.823451,0.00013699,2]
[394965627,1764219198088,-2640.823451,0.00013699,2]
[394965628,1764219198097,-2640.823451,0.00013699,2]
[394965629,1764219198106,-2640.823451,0.00013699,2]
[394965630,1764219198116,-2640.823451,0.00013699,2]
[394965631,1764219198125,-2640.823451,0.00013699,2]
[394965632,1764219198134,-2640.823451,0.00013699,2]
[394965633,1764219198143,-2640.823451,0.00013699,2]
[394965634,1764219198152,-2640.823451,0.00013699,2]
[394965635,1764219198161,-2236.68309316,0.00013699,2]
[394965658,1764220232495,-182.293,7.271e-05,2]
[394965659,1764220232505,-122.95091306,7.271e-05,2]
[394965660,1764220232516,-89.04908694,7.271e-05,2]
[394965661,1764220232526,-225.65862887,7.307e-05,2]
[394965662,1764220232535,-453.70889897,7.413e-05,2]
[394965669,1764220240619,-46.29110103,7.413e-05,2]
[394965670,1764220240628,-500.0,7.413e-05,2]
[394965671,1764220240638,-500.0,7.413e-05,2]
[394965672,1764220240648,-500.0,7.413e-05,2]
[394965673,1764220240657,-328.15269936,7.413e-05,2]
[394965674,1764220240667,-248.55678831,7.413e-05,2]
[394965675,1764220240676,-500.0,7.413e-05,2]
[394965676,1764220240685,-500.0,7.413e-05,2]
[394965677,1764220240695,-500.0,7.413e-05,2]
[394965678,1764220240705,-639.28834441,7.413e-05,2]
[394965679,1764220240714,-500.0,7.413e-05,2]
[394965680,1764220240724,-500.0,7.413e-05,2]
[394965681,1764220240733,-500.0,7.413e-05,2]
[394965682,1764220240742,-509.11081273,7.414e-05,2]
[394965683,1764220240751,-512.46515888,7.414e-05,2]
[394965684,1764220240760,-512.46515888,7.414e-05,2]
[394965685,1764220240770,-512.46515888,7.414e-05,2]
[394965686,1764220240780,-512.46515888,7.414e-05,2]
[394965687,1764220240790,-512.46515888,7.414e-05,2]
[394965688,1764220240800,-512.46515888,7.414e-05,2]
[394965689,1764220240809,-512.46515888,7.414e-05,2]
[394965690,1764220240819,-512.46515888,7.414e-05,2]
[394965691,1764220240828,-512.46515888,7.414e-05,2]
[394965692,1764220240837,-512.46515888,7.414e-05,2]
[394965693,1764220240848,-512.46515888,7.414e-05,2]
[394965694,1764220240857,-512.46515888,7.414e-05,2]
[394965695,1764220240869,-512.46515888,7.414e-05,2]
[394965696,1764220240878,-512.46515888,7.414e-05,2]
[394965697,1764220240887,-512.46515888,7.414e-05,2]
[394965698,1764220240896,-512.46515888,7.414e-05,2]
[394965699,1764220240905,-512.46515888,7.414e-05,2]
[394965700,1764220240914,-512.46515888,7.414e-05,2]
[394965701,1764220240924,-512.46515888,7.414e-05,2]
[394965702,1764220240934,-512.46515888,7.414e-05,2]
[394965703,1764220240943,-512.46515888,7.414e-05,2]
[394965704,1764220240953,-512.46515888,7.414e-05,2]
[394965705,1764220240962,-512.46515888,7.414e-05,2]
[394965706,1764220240973,-412.40373195,7.414e-05,2]
[394965722,1764220246740,-100.06142693,7.414e-05,2]
[394965723,1764220246750,-272.86282337,7.414e-05,2]
[394965725,1764220420135,198.19801242,0.000215,120]
[394965726,1764220710316,162.0,0.0002,30]
[394965727,1764220712436,162.0,0.0002,30]
[394965728,1764220728666,162.0,0.0002,30]
[394965729,1764220743074,163.75055165,0.0002,30]
[394965746,1764221371104,-200.0,0.00015363,10]
[394965747,1764221407609,184.0,0.0001972,120]
[394965764,1764221432516,-206.70119687,7.171e-05,2]
[394965766,1764221432525,-115.29880313,7.171e-05,2]
[394965772,1764221432574,-110.86854673,7.171e-05,2]
[394965773,1764221432583,-211.0,7.171e-05,2]
[394965774,1764221432592,-50591.33218559,7.207e-05,2]
[394965792,1764221438574,-404.3653716,7.206e-05,2]
[394965794,1764221438585,-500.0,7.206e-05,2]
[394965796,1764221438596,-500.0,7.206e-05,2]
[394965798,1764221438607,-500.0,7.206e-05,2]
[394965800,1764221438617,-500.0,7.206e-05,2]
[394965802,1764221438628,-608.16936579,7.206e-05,2]
[394965804,1764221438638,-500.0,7.206e-05,2]
[394965805,1764221438648,-113.45324469,7.206e-05,2]
[394965806,1764221438661,-263.53913976,7.206e-05,2]
[394965807,1764221438673,-123.00761555,7.206e-05,2]
[394965808,1764221438683,-384.08358945,7.206e-05,2]
[394965809,1764221438708,-115.91641055,7.206e-05,2]
[394965810,1764221438718,-500.0,7.206e-05,2]
[394965811,1764221438727,-500.0,7.206e-05,2]
[394965812,1764221438737,-500.0,7.206e-05,2]
[394965813,1764221438750,-500.0,7.206e-05,2]
[394965814,1764221438759,-500.0,7.206e-05,2]
[394965815,1764221438769,-500.0,7.206e-05,2]
[394965816,1764221438778,-500.0,7.206e-05,2]
[394965817,1764221438788,-359.45929805,7.206e-05,2]
[394965818,1764221438800,-140.54070195,7.206e-05,2]
[394965819,1764221438810,-500.0,7.206e-05,2]
[394965820,1764221438820,-384.08358945,7.206e-05,2]
[394965821,1764221438901,-115.91641055,7.206e-05,2]
[394965822,1764221438911,-500.0,7.206e-05,2]
[394965823,1764221438921,-500.0,7.206e-05,2]
[394965824,1764221438931,-500.0,7.206e-05,2]
[394965825,1764221438940,-6214.57626414,7.207e-05,2]
[394965826,1764221438952,-656.983583,7.207e-05,2]
[394965829,1764221440858,-2586.35648519,7.207e-05,2]
[394965830,1764221440869,-13279.35782885,7.207e-05,2]
[394965850,1764222034323,436.58322355,6.958e-05,2]
[394965871,1764222568874,175.63,8.779e-05,21]
[394965892,1764222631715,-210.0,7.028e-05,2]
[394965894,1764222631724,-308.79151297,7.055e-05,2]
[394965896,1764222631733,-300.0,7.098e-05,2]
[394965898,1764222631742,-846.0,7.098e-05,2]
[394965900,1764222631751,-216.55,7.099e-05,2]
[394965902,1764222631760,-210.55978494,7.099e-05,2]
[394965904,1764222631769,-500.0,7.099e-05,2]
[394965906,1764222631782,-500.0,7.099e-05,2]
[394965908,1764222631791,-356.76709289,7.099e-05,2]
[394965978,1764222637759,-143.23290711,7.099e-05,2]
[394965979,1764222637768,-500.0,7.099e-05,2]
[394965980,1764222637779,-500.0,7.099e-05,2]
[394965981,1764222637791,-500.0,7.099e-05,2]
[394965982,1764222637800,-500.0,7.099e-05,2]
[394965983,1764222637809,-500.0,7.099e-05,2]
[394965984,1764222637817,-500.0,7.099e-05,2]
[394965985,1764222637827,-500.0,7.099e-05,2]
[394965986,1764222637837,-500.0,7.099e-05,2]
[394965987,1764222637846,-500.0,7.099e-05,2]
[394965988,1764222637855,-324.44719998,7.099e-05,2]
[394966060,1764222640478,-175.55280002,7.099e-05,2]
[394966061,1764222640488,-324.44719998,7.099e-05,2]
[394966109,1764222645833,-55.78624556,7.099e-05,2]
[394966111,1764222645842,-500.0,7.099e-05,2]
[394966113,1764222645852,-500.0,7.099e-05,2]
[394966115,1764222645865,-500.0,7.099e-05,2]
[394966118,1764222645874,-370.64014074,7.099e-05,2]
[394966119,1764222645884,-520.33978988,7.099e-05,2]
[394966121,1764222645893,-520.33978988,7.099e-05,2]
[394966124,1764222645902,-520.33978988,7.099e-05,2]
[394966125,1764222645911,-520.33978988,7.099e-05,2]
[394966127,1764222645921,-520.33978988,7.099e-05,2]
[394966130,1764222645930,-520.33978988,7.099e-05,2]
[394966132,1764222645940,-520.33978988,7.099e-05,2]
[394966134,1764222645949,-520.33978988,7.099e-05,2]
[394966136,1764222645959,-520.33978988,7.099e-05,2]
[394966138,1764222645968,-520.33978988,7.099e-05,2]
[394966140,1764222645977,-520.33978988,7.099e-05,2]
[394966142,1764222645986,-520.33978988,7.099e-05,2]
[394966144,1764222645995,-520.33978988,7.099e-05,2]
[394966146,1764222646005,-520.33978988,7.099e-05,2]
[394966148,1764222646014,-520.33978988,7.099e-05,2]
[394966150,1764222646023,-520.33978988,7.099e-05,2]
[394966152,1764222646032,-520.33978988,7.099e-05,2]
[394966154,1764222646041,-520.33978988,7.099e-05,2]
[394966156,1764222646051,-520.33978988,7.099e-05,2]
[394966158,1764222646060,-520.33978988,7.099e-05,2]
[394966160,1764222646069,-520.33978988,7.099e-05,2]
[394966162,1764222646079,-520.33978988,7.099e-05,2]
[394966164,1764222646088,-425.36739257,7.099e-05,2]
[394966234,1764222669108,500.0,0.00010959,30]
[394966235,1764222669207,500.0,0.00010959,30]
[394966236,1764222669898,500.0,0.00010959,30]
[394966237,1764222669926,500.0,0.00010959,30]
[394966238,1764222670379,500.0,0.00010959,30]
[394966239,1764222670410,603.51903982,0.00010959,30]